fUSD/lending_fUSD_20250916
["ID","MTS","AMOUNT","RATE_DAILY","PERIOD"]
[385746298,1758004239339,-151.0,0.000248,7]
[385746300,1758004239348,-151.0,0.000248,7]
[385746302,1758004239357,-157.35442751,0.000248,2]
[385746304,1758004239367,-301.53312448,0.000248,2]
[385746306,1758004239376,-150.0,0.00024827,4]
[385746308,1758004239385,-150.0,0.00024827,4]
[385746310,1758004239395,-213.1401216,0.00024868,2]
[385746312,1758004239405,-500.0,0.00024873,2]
[385746314,1758004239414,-500.0,0.00024873,2]
[385746316,1758004239424,-473.96593771,0.00024873,2]
[385746318,1758004239434,-200.0,0.00024873,2]
[385746320,1758004239444,-150.0,0.00024887,4]
[385746322,1758004239453,-153.39,0.0002489,2]
[385746324,1758004239463,-30672.63548265,0.00024899,2]
[385746326,1758004239473,-213.1401216,0.000249,3]
[385746328,1758004239481,-322417.65900206,0.000249,3]
[385746331,1758004239497,-718490.75243102,0.000249,3]
[385746333,1758004239510,-272882.59645328,0.000249,3]
[385746336,1758004239524,-23064.999998,0.000249,3]
[385746393,1758004240040,-79082.83752478,0.000249,3]
[385746395,1758004240050,-16855.23509153,0.000249,2]
[385746397,1758004240059,-2000.0,0.000249,2]
[385746399,1758004240071,-156.034288,0.000249,7]
[385746401,1758004240080,-155.871572,0.000249,7]
[385746403,1758004240089,-151.0,0.000249,7]
[385746405,1758004240098,-232.862574,0.000249,7]
[385746407,1758004240107,-218.271845,0.000249,7]
[385746409,1758004240116,-232.862574,0.000249,7]
[385746411,1758004240125,-218.271845,0.000249,7]
[385746413,1758004240135,-232.862574,0.000249,7]
[385746415,1758004240147,-218.271845,0.000249,7]
[385746417,1758004240156,-232.862574,0.000249,7]
[385746419,1758004240166,-218.271845,0.000249,7]
[385746421,1758004240175,-151.0,0.000249,7]
[385746423,1758004240184,-151.0,0.000249,7]
[385746425,1758004240193,-151.0,0.000249,7]
[385746427,1758004240202,-151.0,0.000249,7]
[385746429,1758004240213,-151.0,0.000249,7]
[385746431,1758004240222,-151.0,0.000249,7]
[385746433,1758004240231,-158.043913,0.000249,7]
[385746435,1758004240240,-196.94905,0.000249,7]
[385746437,1758004240249,-151.0,0.000249,7]
[385746439,1758004240258,-234.510421,0.000249,7]
[385746441,1758004240268,-151.0,0.000249,7]
[385746443,1758004240277,-151.0,0.000249,7]
[385746445,1758004240286,-157.761305,0.000249,7]
[385746447,1758004240295,-151.0,0.000249,7]
[385746449,1758004240304,-151.0,0.000249,7]
[385746451,1758004240312,-152.633247,0.000249,7]
[385746453,1758004240321,-153.537648,0.000249,7]
[385746455,1758004240330,-160.0,0.000249,7]
[385746457,1758004240339,-1163.03578086,0.000249,9]
[385746460,1758004240354,-336.96421914,0.000249,9]
[385746462,1758004240363,-3960.3342068,0.000249,2]
[385746496,1758004240670,-4147.76114037,0.000249,2]
[385746499,1758004240682,-2911.54137699,0.000249,2]
[385746781,1758004243411,-213.1401216,0.00024866,2]
[385746783,1758004243421,-1866.48953575,0.000249,2]
[385747076,1758004246001,-10388.76266717,0.000249,2]
[385747079,1758004246012,-27021.44717627,0.000249,2]
[385747081,1758004246023,-23193.3744,0.000249,2]
[385747083,1758004246034,-6994.79853485,0.000249,2]
[385747085,1758004246044,-13389.02181797,0.000249,2]
[385747087,1758004246053,-151.0,0.000249,7]
[385747089,1758004246066,-339.41446,0.000249,7]
[385747091,1758004246077,-339.41446,0.000249,7]
[385747093,1758004246086,-151.0,0.000249,7]
[385747095,1758004246096,-339.41446,0.000249,7]
[385747097,1758004246105,-166.790517,0.000249,7]
[385747099,1758004246115,-151.0,0.000249,7]
[385747101,1758004246125,-339.41446,0.000249,7]
[385747103,1758004246135,-182.630017,0.000249,7]
[385747105,1758004246145,-151.0,0.000249,7]
[385747107,1758004246154,-151.0,0.000249,7]
[385747109,1758004246164,-151.0,0.000249,7]
[385747111,1758004246173,-152.633573,0.000249,7]
[385747113,1758004246182,-151.0,0.000249,7]
[385747115,1758004246191,-250.0,0.00024912,2]
[385747118,1758004246201,-257.91778498,0.00024912,2]
[385747120,1758004246210,-1120.85599005,0.00024912,2]
[385747122,1758004246219,-250.0,0.00024912,2]
[385747124,1758004246229,-250.0,0.00024912,2]
[385747126,1758004246238,-250.0,0.00024912,2]
[385747127,1758004246247,-250.0,0.00024912,2]
[385747130,1758004246257,-170.69392515,0.00024912,2]
[385747132,1758004246270,-79.30607485,0.00024912,2]
[385747134,1758004246279,-250.0,0.00024912,2]
[385747136,1758004246289,-250.0,0.00024912,2]
[385747138,1758004246298,-187.78006525,0.00024912,2]
[385747140,1758004246307,-250.0,0.00024912,2]
[385747142,1758004246316,-250.0,0.00024912,2]
[385747144,1758004246326,-250.0,0.00024912,2]
[385747146,1758004246335,-3019.39713018,0.00024912,2]
[385747148,1758004246345,-8882.6885148,0.00024912,2]
[385747150,1758004246354,-250.0,0.00024912,2]
[385747152,1758004246363,-223.43840204,0.00024912,2]
[385747155,1758004246375,-26.56159796,0.00024912,2]
[385747157,1758004246384,-670.58624095,0.00024912,2]
[385747159,1758004246393,-152.42631201,0.00024912,2]
[385747161,1758004246403,-281.11798863,0.00024912,2]
[385747163,1758004246412,-151.0,0.00024912,2]
[385747164,1758004246421,-151.62775637,0.00024912,2]
[385747166,1758004246430,-322.6107,0.00024912,2]
[385747168,1758004246440,-170.06,0.00024912,2]
[385747171,1758004246449,-500.0,0.00024932,2]
[385747173,1758004246459,-150.0,0.00024962,4]
[385747174,1758004246469,-150.0,0.00024962,4]
[385747176,1758004246479,-150.0,0.00024962,4]
[385747178,1758004246489,-7725.32563236,0.00024967,2]
[385747181,1758004246500,-1486.02235749,0.00024967,2]
[385747183,1758004246510,-168.0,0.00025,7]
[385747185,1758004246519,-3124.10869714,0.00025022,2]
[385747187,1758004246531,-151.0,0.000251,7]
[385747189,1758004246540,-151.0,0.000251,7]
[385747191,1758004246549,-151.0,0.000251,7]
[385747193,1758004246559,-11094.0,0.000251,2]
[385747195,1758004246568,-150.0,0.00025131,4]
[385747197,1758004246577,-150.0,0.00025164,2]
[385747199,1758004246586,-284.98625352,0.00025166,2]
[385747201,1758004246596,-151.0,0.00025166,7]
[385747203,1758004246605,-339.41446,0.00025166,7]
[385747205,1758004246614,-339.41446,0.00025166,7]
[385747207,1758004246623,-151.0,0.00025166,7]
[385747209,1758004246632,-339.41446,0.00025166,7]
[385747211,1758004246642,-151.0,0.00025166,7]
[385747213,1758004246651,-339.41446,0.00025166,7]
[385747215,1758004246660,-363.21777409,0.00025168,2]
[385747217,1758004246669,-441.44929467,0.00025169,2]
[385747219,1758004246677,-519.68081524,0.00025171,2]
[385747221,1758004246688,-500.0,0.00025173,2]
[385747223,1758004246697,-500.0,0.00025173,2]
[385747225,1758004246706,-597.91233581,0.00025173,2]
[385747227,1758004246714,-676.14385639,0.00025175,2]
[385747229,1758004246725,-754.37537696,0.00025176,2]
[385747231,1758004246734,-832.60689754,0.00025178,2]
[385747233,1758004246743,-151.0,0.00025178,7]
[385747235,1758004246752,-151.0,0.00025178,7]
[385747237,1758004246762,-170.707188,0.00025178,7]
[385747239,1758004246771,-151.0,0.00025178,7]
[385747241,1758004246780,-910.83841811,0.0002518,2]
[385747243,1758004246790,-150.0,0.00025187,4]
[385747245,1758004246799,-150.0,0.00025187,4]
[385747247,1758004246808,-150.0,0.00025187,4]
[385747249,1758004246817,-150.0,0.00025187,4]
[385747251,1758004246827,-160.52,0.00025189,2]
[385747253,1758004246836,-232.862574,0.0002519,7]
[385747255,1758004246846,-218.271845,0.0002519,7]
[385747257,1758004246855,-232.862574,0.0002519,7]
[385747258,1758004246864,-218.271845,0.0002519,7]
[385747259,1758004246873,-232.862574,0.0002519,7]
[385747260,1758004246882,-218.271845,0.0002519,7]
[385747261,1758004246892,-232.862574,0.0002519,7]
[385747262,1758004246901,-218.271845,0.0002519,7]
[385747263,1758004246910,-158.902364,0.0002519,7]
[385747264,1758004246920,-196.6225,0.00025199,2]
[385747266,1758004246929,-160.0,0.000252,3]
[385747268,1758004246939,-20000.0,0.000252,2]
[385747270,1758004246948,-206.64298236,0.00025206,2]
[385747272,1758004246958,-500.0,0.00025206,2]
[385747274,1758004246967,-200.76501172,0.00025206,2]
[385747276,1758004246977,-975.0,0.00025206,2]
[385747278,1758004246987,-150.0,0.00025206,2]
[385747280,1758004246996,-500.0,0.00025206,2]
[385747282,1758004247005,-15516.30236096,0.00025241,2]
[385747284,1758004247018,-585.66204504,0.00025241,2]
[385747286,1758004247027,-150.0,0.000253,4]
[385747288,1758004247036,-150.0,0.000253,4]
[385747289,1758004247045,-497.4844995,0.00025321,2]
[385747290,1758004247055,-176.700082,0.00025367,7]
[385747291,1758004247064,-151.0,0.00025367,7]
[385747292,1758004247076,-151.0,0.00025367,7]
[385747293,1758004247086,-150.0,0.00025367,4]
[385747294,1758004247095,-150.0,0.00025367,4]
[385747295,1758004247103,-804.41,0.0002537,2]
[385747296,1758004247113,-804.41,0.0002537,2]
[385747297,1758004247122,-1000.0,0.00025421,2]
[385747298,1758004247131,-1000.0,0.00025421,2]
[385747299,1758004247140,-152.64839438,0.0002546,2]
[385747301,1758004247150,-150.0,0.00025468,4]
[385747303,1758004247159,-500.0,0.0002548,2]
[385747305,1758004247168,-975.0,0.0002548,2]
[385747306,1758004247177,-205.70799886,0.0002548,2]
[385747308,1758004247186,-500.0,0.0002548,2]
[385747310,1758004247196,-150.0,0.00025487,4]
[385747312,1758004247204,-710.0,0.0002559,2]
[385747314,1758004247214,-150.0,0.00025637,4]
[385747316,1758004247224,-150.0,0.00025637,4]
[385747318,1758004247234,-150.0,0.00025637,4]
[385747320,1758004247243,-150.0,0.00025637,4]
[385747322,1758004247252,-198.36556,0.0002565,2]
[385747324,1758004247261,-188.11,0.00025684,2]
[385747326,1758004247271,-167.39,0.00025717,2]
[385747328,1758004247280,-1000.0,0.00025721,2]
[385747330,1758004247289,-488.43653339,0.00025721,2]
[385747332,1758004247299,-486.0,0.0002575,2]
[385747334,1758004247308,-502.6846923,0.00025754,2]
[385747336,1758004247317,-975.0,0.00025754,2]
[385747338,1758004247326,-500.0,0.00025754,2]
[385747340,1758004247336,-150.0,0.00025787,4]
[385747342,1758004247345,-5835.06352523,0.000258,2]
[385747345,1758004247358,-10266.90088077,0.000258,2]
[385747347,1758004247367,-151.0,0.00025801,7]
[385747349,1758004247376,-339.41446,0.00025801,7]
[385747351,1758004247386,-339.41446,0.00025801,7]
[385747359,1758004247452,-151.0,0.00025801,7]
[385747361,1758004247461,-339.41446,0.00025801,7]
[385747363,1758004247470,-151.0,0.00025801,7]
[385747365,1758004247479,-339.41446,0.00025801,7]
[385747367,1758004247488,-151.0,0.00025801,7]
[385747369,1758004247497,-151.0,0.00025801,7]
[385747371,1758004247507,-151.0,0.00025801,7]
[385747373,1758004247522,-150.0,0.00025806,4]
[385747374,1758004247532,-400.0,0.00025832,2]
[385747375,1758004247541,-232.862574,0.00025832,7]
[385747376,1758004247550,-218.271845,0.00025832,7]
[385747377,1758004247559,-232.862574,0.00025832,7]
[385747378,1758004247568,-218.271845,0.00025832,7]
[385747379,1758004247577,-232.862574,0.00025832,7]
[385747380,1758004247586,-218.271845,0.00025832,7]
[385747381,1758004247596,-232.862574,0.00025832,7]
[385747382,1758004247605,-218.271845,0.00025832,7]
[385747383,1758004247615,-168.0,0.0002589,7]
[385747384,1758004247624,-153.14334945,0.000259,9]
[385747420,1758004329563,300.0,0.00027397,120]
[385747421,1758004329985,300.0,0.00030137,120]
[385747471,1758004466412,155.28,0.00012742,2]
[385747472,1758004466632,155.28,0.000139,2]
[385747474,1758004466838,155.28,0.00015059,2]
[385747475,1758004467264,155.28,0.00016217,2]
[385747476,1758004467310,155.28,0.00017375,2]
[385747477,1758004467692,155.28,0.00018534,2]
[385747479,1758004468791,-155.28,0.00019692,2]
[385747516,1758004638432,300.0,0.00027397,120]
[385747517,1758004639497,485.44861709,0.00030137,120]
[385747560,1758004871261,-155.28,0.0002085,2]
[385747561,1758004871287,-155.28,0.00022009,2]
[385747562,1758004871312,-155.28,0.00023167,2]
[385747563,1758004871334,-480.35264852,0.00023704,2]
[385747564,1758004871359,-155.28,0.00024325,2]
[385747565,1758004871380,-198.53484672,0.00024899,2]
[385747566,1758004871404,-182.64066428,0.00024899,2]
[385747567,1758004871426,-422.52524102,0.00024899,2]
[385747568,1758004871452,-300.0,0.00024899,2]
[385747570,1758004885167,259.0864139,0.00024324,2]
[385747571,1758004885220,165.7218826,0.00024324,2]
[385747572,1758004885250,470.62423751,0.00024324,2]
[385747573,1758004885276,502.08194811,0.00024324,2]
[385747574,1758004885302,537.92019357,0.00024324,2]
[385747575,1758004920933,-150.0,0.00025886,11]
[385747576,1758004945743,-44.017,0.00025886,11]
[385747577,1758004945767,-455.26,0.00025886,11]
[385747578,1758004969546,-1846.85665055,0.000259,9]
[385747579,1758004969570,-2033.60649813,0.000265,7]
[385747580,1758004969594,-2000.00000099,0.000269,7]
[385747581,1758004969617,-8119.53685033,0.00027,7]
[385747596,1758005184657,200.0,0.0003,120]
[385747602,1758005251738,-168.3,0.00027425,30]
[385747604,1758005293286,168.3,0.00027425,30]
[385747605,1758005309606,160.20899769,0.0003,120]
[385747609,1758005366508,210.4,0.00028,30]
[385747615,1758005432364,-473.4391,0.00024799,2]
[385747616,1758005432375,-164.63957416,0.00024832,2]
[385747617,1758005432384,-267.46074303,0.00024885,2]
[385747618,1758005432630,-300.0,0.00024899,2]
[385747619,1758005432641,-515.95536276,0.000249,2]
[385747620,1758005432653,-15400.06026908,0.000249,2]
[385747621,1758005432663,-500.0,0.00024932,2]
[385747622,1758005432672,-1499.47881585,0.00025057,2]
[385747623,1758005432682,-1428.0,0.000252,2]
[385747624,1758005432692,-150.0,0.000252,4]
[385747625,1758005432701,-150.0,0.000252,4]
[385747626,1758005432711,-150.0,0.000252,4]
[385747627,1758005432721,-150.0,0.000252,4]
[385747628,1758005432731,-150.0,0.000252,4]
[385747630,1758005432741,-150.0,0.000252,4]
[385747633,1758005432750,-150.0,0.000252,4]
[385747636,1758005432760,-150.0,0.000252,4]
[385747638,1758005432769,-150.0,0.000252,4]
[385747640,1758005432779,-150.0,0.000252,4]
[385747642,1758005432788,-150.0,0.000252,4]
[385747644,1758005432798,-200.0,0.00025323,2]
[385747646,1758005432807,-666.0,0.0002534,3]
[385747648,1758005432817,-150.0,0.00025346,7]
[385747650,1758005432826,-1780.8,0.00025387,2]
[385747652,1758005432836,-170.06,0.00025402,2]
[385747654,1758005432845,-262.33284478,0.00025431,2]
[385747655,1758005432855,-5000.0,0.00025451,2]
[385747656,1758005432865,-232.74,0.00025483,2]
[385747657,1758005432877,-155.28,0.00025484,2]
[385747658,1758005432887,-423.57,0.00025493,2]
[385747659,1758005432896,-250.0,0.00025512,2]
[385747660,1758005432906,-158.69244,0.0002557,2]
[385747661,1758005432915,-200.0,0.00025625,2]
[385747662,1758005432924,-158.69245,0.0002563,2]
[385747663,1758005432934,-150.0,0.00025667,4]
[385747664,1758005432943,-150.0,0.00025667,4]
[385747665,1758005432952,-1582.61854889,0.00025697,2]
[385747666,1758005432964,-5678.61668531,0.00025697,2]
[385747667,1758005432974,-533.0,0.00025735,2]
[385747668,1758005432983,-158.69245,0.0002588,2]
[385747669,1758005432992,-619.88351266,0.00026,2]
[385747670,1758005433002,-162.33,0.00026062,2]
[385747671,1758005433012,-503.0,0.00026082,2]
[385747672,1758005433021,-158.69245,0.0002613,2]
[385747673,1758005433031,-150.0,0.00026133,4]
[385747674,1758005433040,-150.0,0.00026133,4]
[385747675,1758005433050,-150.0,0.00026133,4]
[385747676,1758005433059,-150.0,0.00026133,4]
[385747677,1758005433069,-277.35679052,0.00026254,2]
[385747678,1758005433079,-1521.98986301,0.000263,2]
[385747679,1758005433091,-256.01013699,0.000263,2]
[385747680,1758005433100,-158.69245,0.0002638,2]
[385747681,1758005433110,-322.6107,0.00026384,2]
[385747682,1758005433119,-623.09311447,0.00026384,2]
[385747683,1758005433128,-23629.83966515,0.000264,2]
[385747684,1758005433140,-1938.19094199,0.000264,2]
[385747685,1758005433346,-388.4884592,0.000264,2]
[385747686,1758005433379,-1013.65932111,0.000264,2]
[385747687,1758005433390,-559.67144503,0.00026406,2]
[385747688,1758005433400,-530.0,0.00026529,2]
[385747689,1758005433410,-150.0,0.000266,4]
[385747690,1758005433420,-30.22721883,0.000266,4]
[385747691,1758005433436,-119.77278117,0.000266,4]
[385747692,1758005433446,-150.0,0.000266,4]
[385747693,1758005433455,-150.0,0.000266,4]
[385747694,1758005433465,-150.0,0.000266,4]
[385747695,1758005433475,-533.0,0.00026618,7]
[385747696,1758005433485,-530.0,0.00026629,7]
[385747697,1758005433495,-148.01827826,0.00026658,2]
[385747698,1758005433507,-704.98172174,0.00026658,2]
[385747699,1758005433517,-128.01827826,0.00026658,2]
[385747702,1758005438736,-371.98172174,0.00026658,2]
[385747704,1758005438745,-560.0,0.00026674,2]
[385747706,1758005438755,-150.52426104,0.00026674,2]
[385747708,1758005438766,-150.0,0.00026674,2]
[385747710,1758005438775,-150.0,0.00026674,2]
[385747712,1758005438786,-157.3925,0.00026786,2]
[385747714,1758005438795,-1450.10151722,0.00026786,2]
[385747739,1758005440446,-1102.02831525,0.00026786,2]
[385747740,1758005440542,-3187.66396753,0.00026786,2]
[385747741,1758005440551,-3023.2432,0.00026786,2]
[385747742,1758005440561,-278.42033402,0.00026851,2]
[385747743,1758005440570,-160.0,0.00026856,2]
[385747744,1758005440579,-160.0,0.00026857,2]
[385747745,1758005440589,-160.0,0.00026857,2]
[385747746,1758005440598,-4060.1832,0.00026879,2]
[385747747,1758005440607,-12182.26060009,0.00026886,2]
[385747748,1758005440618,-2000.0,0.000269,2]
[385747749,1758005440627,-11271.3750842,0.000269,2]
[385747750,1758005440636,-530.0,0.00026907,2]
[385747751,1758005440648,-853.0,0.00026932,2]
[385747752,1758005440657,-500.0,0.00026932,2]
[385747753,1758005440667,-560.0,0.00026948,2]
[385747754,1758005440676,-150.0,0.00026948,2]
[385747755,1758005440686,-150.0,0.00026963,2]
[385747756,1758005440695,-260.96296156,0.00026965,2]
[385747757,1758005440704,-332.59985297,0.00026967,2]
[385747758,1758005440715,-404.23674438,0.00026969,2]
[385747759,1758005440727,-475.87363579,0.00026971,2]
[385747760,1758005440736,-507.74076684,0.00026973,2]
[385747761,1758005440747,-500.0,0.00026973,2]
[385747762,1758005440757,-514.49834228,0.00026973,2]
[385747763,1758005440766,-500.0,0.00026973,2]
[385747764,1758005440775,-508.7456214,0.00026973,2]
[385747765,1758005440784,-547.5105272,0.00026973,2]
[385747767,1758005440793,-619.14741861,0.00026974,2]
[385747768,1758005440803,-690.78431002,0.00026976,2]
[385747769,1758005440813,-420.0,0.00026977,2]
[385747770,1758005440822,-762.42120143,0.00026978,2]
[385747771,1758005440831,-90077.10109871,0.00026979,2]
[385747773,1758005440840,-834.05809282,0.0002698,2]
[385747775,1758005440849,-804.41,0.00026986,2]
[385747776,1758005440858,-472.13,0.00026986,2]
[385747777,1758005440867,-804.41,0.00026986,2]
[385747778,1758005440876,-472.13,0.00026986,2]
[385747779,1758005440886,-472.13,0.00026986,2]
[385747780,1758005440894,-472.13,0.00026986,2]
[385747781,1758005440903,-8389.31199635,0.0002699,2]
[385747786,1758005443420,-153983.00311265,0.0002699,2]
[385747787,1758005443430,-45771.2970166,0.0002699,2]
[385747788,1758005443439,-194.575,0.00026999,2]
[385747789,1758005443448,-168.40168267,0.00027,2]
[385747790,1758005443458,-231623.7438356,0.00027,2]
[385747791,1758005443469,-681.00000008,0.00027,2]
[385747792,1758005443479,-404.3835385,0.00027,2]
[385747793,1758005443583,-485.29999995,0.00027,2]
[385747794,1758005443721,-420.93293559,0.00027,2]
[385747804,1758005446355,-289.31206427,0.00027,2]
[385747805,1758005446367,-569.6828336,0.00027,2]
[385747806,1758005446487,-2870.78580991,0.00027,2]
[385747807,1758005446499,-3289.91266796,0.00027,2]
[385747808,1758005446511,-6224.82302791,0.00027,2]
[385747809,1758005446533,-10171.25649789,0.00027,2]
[385747822,1758005470922,154.25,0.00013285,2]
[385747823,1758005471113,154.25,0.00014392,2]
[385747824,1758005471315,154.25,0.00015499,2]
[385747825,1758005471524,154.25,0.00016606,2]
[385747826,1758005471739,154.25,0.00017713,2]
[385747827,1758005471997,154.25,0.0001882,2]
[385747851,1758005768158,500.0,0.00013699,2]
[385747855,1758006020475,351.0,0.00030136,120]
[385747897,1758006276355,168.3,0.00027425,30]
[385747900,1758006349778,333.0,0.00030136,120]
[385747909,1758006450724,154.67,0.00012509,2]
[385747910,1758006450789,154.67,0.00013472,2]
[385747911,1758006450882,154.67,0.00014434,2]
[385747912,1758006450954,154.67,0.00015396,2]
[385747913,1758006451079,154.67,0.00016359,2]
[385747914,1758006451282,154.67,0.00017321,2]
[385747915,1758006451485,154.67,0.00018283,2]
[385747916,1758006451680,154.67,0.00019245,2]
[385747930,1758006631577,-154.25,0.00019928,2]
[385747931,1758006631588,-154.67,0.00020208,2]
[385747932,1758006631598,-257.1875946,0.00020411,2]
[385747933,1758006631607,-154.25,0.00021035,2]
[385747934,1758006631617,-154.67,0.0002117,2]
[385747935,1758006631626,-250.0,0.0002192,2]
[385747936,1758006631635,-154.67,0.00022132,2]
[385747937,1758006631644,-65.3439377,0.00022142,2]
[385747938,1758006631703,-88.9060623,0.00022142,2]
[385747939,1758006631713,-299.92,0.00022416,2]
[385747940,1758006631722,-117.01724153,0.00023094,2]
[385747941,1758006631945,-37.65275847,0.00023094,2]
[385747942,1758006631954,-154.25,0.00023249,2]
[385747943,1758006631964,-154.67,0.00024057,2]
[385747944,1758006631973,-299.92,0.0002423,2]
[385747945,1758006631983,-154.25,0.00024356,2]
[385747947,1758006631992,-151.22,0.00024658,2]
[385747948,1758006632001,-510.29,0.00024832,2]
[385747949,1758006632010,-160.0,0.00024868,2]
[385747950,1758006632020,-160.0,0.0002487,2]
[385747951,1758006632032,-244.0,0.00024877,2]
[385747952,1758006632041,-300.0,0.00024884,2]
[385747953,1758006632050,-250.0,0.00024885,2]
[385747954,1758006632059,-250.0,0.00024885,2]
[385747955,1758006632068,-250.0,0.00024885,2]
[385747956,1758006632078,-250.0,0.00024885,2]
[385747957,1758006632087,-250.0,0.00024885,2]
[385747958,1758006632096,-250.0,0.00024885,2]
[385747960,1758006632106,-250.0,0.00024885,2]
[385747962,1758006632115,-250.0,0.00024885,2]
[385747964,1758006632124,-250.0,0.00024885,2]
[385747966,1758006632134,-250.0,0.00024885,2]
[385747968,1758006632143,-250.0,0.00024885,2]
[385747970,1758006632152,-250.0,0.00024885,2]
[385747972,1758006632161,-267.46074303,0.00024885,2]
[385747974,1758006632170,-322.6107,0.00024885,2]
[385747976,1758006632180,-440.4878198,0.00024899,2]
[385747978,1758006632190,-2638.89425757,0.000249,2]
[385748379,1758006641670,-559.65869798,0.000249,2]
[385748381,1758006641681,-4281.10171373,0.000249,2]
[385748796,1758006645630,-7304.40318896,0.000249,2]
[385748798,1758006645639,-500.0,0.00024932,2]
[385748800,1758006645649,-261.17,0.00025015,2]
[385748801,1758006645658,-154.67,0.00025019,2]
[385748802,1758006645667,-150.0,0.00025149,7]
[385748803,1758006645676,-666.0,0.00025183,3]
[385748804,1758006645685,-150.0,0.000252,4]
[385748805,1758006645694,-150.0,0.000252,4]
[385748806,1758006645703,-150.0,0.000252,4]
[385748807,1758006645713,-150.0,0.000252,4]
[385748808,1758006645722,-150.0,0.000252,4]
[385748810,1758006645732,-150.0,0.000252,4]
[385748812,1758006645741,-150.0,0.000252,4]
[385748814,1758006645750,-150.0,0.000252,4]
[385748816,1758006645759,-269.48857861,0.000252,4]
[385748818,1758006645768,-150.0,0.000252,4]
[385748820,1758006645777,-250.0,0.000253,2]
[385748822,1758006645786,-154.25,0.00025463,2]
[385748824,1758006645795,-1429.0,0.000255,2]
[385748826,1758006645804,-1908.0,0.000256,5]
[385748828,1758006645813,-170.06,0.00025748,2]
[385748830,1758006645822,-150.99,0.00025786,2]
[385748832,1758006645832,-274.15,0.00025786,12]
[385748834,1758006645840,-3170.47622799,0.00025786,2]
[385748836,1758006645852,-102.62377201,0.00025786,2]
[385748838,1758006645861,-4021.2617001,0.00025786,10]
[385748841,1758006645872,-21383.32723651,0.00025786,10]
[385748843,1758006645887,-5766.5,0.00025786,10]
[385750168,1758007221186,266.87667847,0.0002,120]
[385750173,1758007353095,168.3,0.00027425,30]
[385750174,1758007361904,179.77440951,0.000248,18]
[385750175,1758007366843,179.77440948,0.000248,18]
[385750178,1758007371821,179.77440948,0.000248,18]
[385750179,1758007377485,179.77440948,0.00024964,19]
[385750181,1758007439086,157.28,0.0001227,2]
[385750182,1758007439299,105.36,0.00014315,2]
[385750183,1758007439328,51.92,0.00014315,2]
[385750184,1758007439517,157.28,0.0001636,2]
[385750185,1758007439722,157.28,0.00018405,2]
[385750191,1758007626050,500.0,0.000197,7]
[385750192,1758007628514,1000.0,0.000198,7]
[385750193,1758007630390,1600.0,0.000199,7]
[385750195,1758007640067,500.0,0.0001305,2]
[385750203,1758007711415,-151.336502,0.000198,2]
[385750204,1758007715900,-500.0,0.000198,2]
[385750207,1758007717728,-156.02298125,0.000198,2]
[385750210,1758007719243,-400.0,0.000198,2]
[385750212,1758007721230,-400.0,0.000198,2]
[385750213,1758007723509,-462.53024222,0.000198,2]